bitfinex/quotes_ETHUSD_20250529
["timestamp","ask_amount","ask_price","bid_price","bid_amount"]
[1748542225775,8.52874389,2667.0,2666.1,1.2434]
[1748542225986,3.749884,2666.8,2666.2,3.75059674]
[1748542226143,4.46874389,2667.0,2666.2,0.87447897]
[1748542226362,3.7498872,2666.8,2666.2,8.93388672]
[1748542226566,8.21830303,2667.0,2666.3,3.75049538]
[1748542226775,7.80977513,2666.9,2666.4,10.0]
[1748542227092,4.06,2666.8,2666.4,10.0]
[1748542227247,4.06,2666.8,2666.3,5.183338]
[1748542227454,4.06,2666.8,2666.4,2.592098]
[1748542227655,4.06,2666.8,2666.6,3.7500151]
[1748542227888,4.46874389,2667.0,2666.7,5.183338]
[1748542227889,3.30234389,2667.0,2666.7,5.183338]
[1748542228095,1.6675228,2667.3,2666.8,10.0]
[1748542228281,4.5064228,2667.3,2666.7,1.2274]
[1748542228627,4.5064228,2667.3,2667.0,10.0]
[1748542228941,4.5064228,2667.3,2667.0,13.74952406]
[1748542229108,4.5064228,2667.3,2666.9,8.93294075]
[1748542229284,4.5064228,2667.3,2667.0,3.74945954]
[1748542229494,0.4464228,2667.3,2667.0,3.74945954]
[1748542229803,0.4464228,2667.3,2666.8,18.93309544]
[1748542230004,0.4464228,2667.3,2667.0,3.74950752]
[1748542230488,0.4464228,2667.3,2666.7,1.2274]
[1748542230652,0.4464228,2667.3,2667.1,3.7493809]
[1748542230858,0.4464228,2667.3,2667.0,3.74945734]
[1748542231194,0.4464228,2667.3,2667.1,3.74937979]
[1748542231598,0.4464228,2667.3,2667.2,3.74925014]
[1748542231754,0.4464228,2667.3,2667.2,11.07189314]
[1748542232592,0.4464228,2667.3,2667.2,6.63992414]
[1748542232892,0.4464228,2667.3,2667.2,2.138487]
[1748542233062,0.4464228,2667.3,2667.0,3.74949416]
[1748542233482,0.4464228,2667.3,2666.6,5.92617882]
[1748542233483,3.74946257,2667.1,2666.6,3.75008483]
[1748542233810,1.137,2668.3,2666.2,7.06417882]
[1748542233811,1.88272599,2669.7,2668.6,6.50764221]
[1748542233997,0.59623286,2670.1,2668.6,6.50764221]
[1748542233998,0.34891834,2670.0,2668.8,14.268006]
[1748542234157,1.79312413,2670.0,2668.7,12.53]
[1748542234356,7.7266345,2669.9,2668.6,2.43025]
[1748542234557,7.7266345,2669.9,2668.6,3.541137]
[1748542234558,3.74666352,2669.1,2668.6,3.541137]
[1748542234796,3.74666352,2669.1,2668.2,3.74784206]
[1748542234797,3.74723329,2668.7,2668.0,3.74809847]
[1748542235082,3.74723329,2668.7,2668.2,11.4298]
[1748542235083,0.37472333,2668.6,2668.2,11.4298]
[1748542235289,0.32472333,2668.6,2668.2,15.17763651]
[1748542235499,0.32472333,2668.6,2668.2,3.74783651]
[1748542235993,0.32472333,2668.6,2668.3,10.0]
[1748542236197,0.32472333,2668.6,2668.2,21.581655]
[1748542236404,0.32472333,2668.6,2667.9,1.1949]
[1748542236405,3.74735872,2668.6,2668.1,10.380555]
[1748542236699,4.89599246,2668.7,2668.1,10.380555]
[1748542236896,3.7474174,2668.6,2668.1,10.0]
[1748542237099,4.89599246,2668.7,2668.0,15.878968]
[1748542237311,4.89599246,2668.7,2668.0,13.449101]
[1748542237312,3.74744422,2668.5,2668.0,13.449101]
[1748542237456,3.74744422,2668.5,2668.0,10.950226]
[1748542237659,3.74744422,2668.5,2667.9,4.94313995]
[1748542237660,3.74768219,2668.4,2667.9,1.1949]
[1748542237859,4.23694127,2668.6,2668.0,15.17866299]
[1748542238097,3.74747135,2668.5,2668.1,11.4378]
[1748542238299,0.42370706,2668.4,2668.1,11.4378]
[1748542238503,4.17131794,2668.4,2667.9,1.1949]
[1748542238697,0.42370706,2668.4,2668.0,10.5187]
[1748542238904,0.42370706,2668.4,2668.1,11.4797]
[1748542239215,0.42370706,2668.4,2668.0,10.5187]
[1748542239375,3.74779227,2668.3,2667.6,4.9773592]
[1748542239575,0.42370706,2668.4,2667.3,1.2287]
[1748542239576,3.74826642,2667.9,2667.3,1.2287]
[1748542239773,0.55,2668.0,2666.6,2.06247207]
[1748542239774,3.74885565,2667.5,2667.1,10.007345]
[1748542239988,4.164,2667.8,2666.8,20.2038]
[1748542239989,3.74865933,2667.7,2666.8,20.2038]
[1748542240193,3.74897004,2667.4,2666.8,13.9722667]
[1748542240365,3.74897004,2667.4,2666.9,13.96843894]
[1748542240566,3.74897004,2667.4,2666.8,10.087146]
[1748542240567,3.7493329,2667.2,2666.8,10.087146]
[1748542240909,3.74917093,2667.3,2666.8,10.087146]
[1748542241112,3.74925874,2667.2,2666.8,10.087146]
[1748542241264,3.74919343,2667.3,2666.8,13.83694572]
[1748542241468,0.374897,2667.4,2666.9,3.74966357]
[1748542241673,3.74875305,2667.6,2667.1,3.74931791]
[1748542241997,4.16507895,2668.2,2667.0,8.623561]
[1748542241998,3.74812896,2668.0,2667.6,10.0]
[1748542242317,3.74812896,2668.0,2667.7,0.31292222]
[1748542242540,6.15927963,2668.2,2667.7,0.31292222]
[1748542242541,2.4114,2668.2,2667.7,0.31292222]
[1748542242837,3.74804681,2668.1,2667.7,0.31292222]
[1748542243615,3.74815328,2668.0,2667.7,0.31292222]
[1748542243772,3.74799229,2668.1,2667.7,0.31292222]
[1748542243972,3.74823131,2668.0,2667.7,0.31292222]
[1748542244175,0.90939923,2668.1,2667.7,4.06146855]
[1748542244594,4.6574113,2668.1,2667.7,0.31292222]
[1748542244806,3.7481513,2668.0,2667.7,0.31292222]
[1748542245005,0.90939923,2668.1,2667.7,4.06145201]
[1748542245222,0.90939923,2668.1,2667.7,0.31292222]
[1748542245414,4.65739774,2668.1,2667.7,0.31292222]
[1748542245638,4.29840692,2667.8,2667.7,0.31292222]
[1748542245981,4.151,2667.9,2667.0,1.2114]
[1748542246182,4.151,2667.9,2667.2,4.381224]
[1748542246183,3.74871346,2667.6,2667.2,4.381224]
[1748542246427,3.74871346,2667.6,2667.3,10.0]
[1748542246741,4.151,2667.9,2667.1,4.06237521]
[1748542246742,1.2361,2668.1,2667.2,4.84091982]
[1748542246894,3.74875959,2667.6,2667.2,0.31298088]
[1748542247079,7.89714378,2668.0,2667.2,0.31298088]
[1748542247080,3.74885717,2667.5,2667.2,0.31298088]
[1748542247279,3.74875126,2667.6,2667.2,0.31298088]
[1748542247717,3.74875126,2667.6,2667.1,10.0]
[1748542247915,3.74861614,2667.7,2667.2,13.760469]
[1748542248139,3.74861614,2667.7,2667.3,13.683327]
[1748542248282,0.55,2667.9,2667.4,6.53358991]
[1748542248486,7.89237067,2667.9,2667.3,27.274944]
[1748542248686,3.74847094,2667.8,2667.3,16.636002]
[1748542248886,3.74862665,2667.7,2667.2,3.74916926]
[1748542249135,3.74862665,2667.7,2667.4,10.0]
[1748542249377,3.74832255,2667.9,2667.3,18.96426235]
[1748542249378,3.74847355,2667.8,2667.3,18.96426235]
[1748542249534,3.7485525,2667.7,2667.3,11.5237]
[1748542249730,1.188,2668.3,2667.5,34.394183]
[1748542249964,7.8878915,2668.2,2667.6,10.386975]
[1748542250270,7.8878915,2668.2,2667.5,3.74874532]
[1748542250271,3.74833762,2667.9,2667.5,11.733475]
[1748542250569,3.74832637,2667.9,2667.6,10.0]
[1748542250746,3.74820787,2668.0,2667.6,24.434315]
[1748542251256,3.74832555,2667.9,2667.5,23.155535]
[1748542251485,3.74820034,2668.0,2667.5,20.275735]
[1748542251675,4.136,2668.1,2667.2,17.04995]
[1748542251871,3.74835458,2667.9,2667.4,3.74895298]
[1748542252084,3.74835458,2667.9,2667.5,15.222351]
[1748542252235,3.74812611,2668.0,2667.6,22.787982]
[1748542252581,3.74812611,2668.0,2667.6,19.897939]
[1748542252781,3.74812611,2668.0,2667.6,19.609629]
[1748542253199,7.88003266,2668.1,2667.5,18.715829]
[1748542253505,3.74851358,2667.8,2667.4,10.3339]
[1748542253786,3.74851358,2667.8,2667.4,10.0]
[1748542254003,3.74851358,2667.8,2667.5,10.0]
[1748542254158,3.74851358,2667.8,2667.5,11.821256]
[1748542254486,3.74851358,2667.8,2667.5,3.314638]
[1748542254943,3.74868795,2667.6,2667.5,3.314638]
[1748542255147,9.68967415,2667.7,2667.0,2.108084]
[1748542255347,3.74891569,2667.5,2667.0,2.108084]
[1748542255582,4.128,2667.4,2667.1,21.681624]
[1748542255798,4.128,2667.4,2667.1,18.725594]
[1748542256200,3.74912631,2667.3,2667.0,19.045694]
[1748542256350,3.74910958,2667.3,2667.0,19.045694]
[1748542256564,3.74910958,2667.3,2666.6,3.74996669]
[1748542256565,3.74910958,2667.3,2666.7,10.0]
[1748542256903,3.74932583,2667.2,2666.9,10.0]
[1748542257201,3.74932583,2667.2,2666.9,4.307011]
[1748542257415,4.128,2667.4,2666.9,8.05661194]
[1748542257563,4.122,2667.3,2667.0,5.28592]
[1748542257762,4.122,2667.3,2667.1,10.0]
[1748542257963,3.7494045,2667.1,2666.7,1.67948272]
[1748542258161,3.7494045,2667.1,2666.8,2.013184]
[1748542258400,3.74848521,2667.8,2667.2,3.74916544]
[1748542258565,3.74864318,2667.7,2667.3,10.0]
[1748542258765,3.74877855,2667.6,2667.1,14.281007]
[1748542259001,3.74862158,2667.7,2667.1,18.03037448]
[1748542259202,3.74869189,2667.6,2667.2,23.57131]
[1748542259419,3.74869189,2667.6,2667.2,13.57131]
[1748542259720,3.7489054,2667.5,2667.0,3.74946988]
[1748542259873,0.55,2667.8,2667.1,10.0]
[1748542260213,1.5210763,2667.8,2667.3,16.475415]
[1748542260366,3.74879845,2667.6,2667.2,23.391723]
[1748542260569,3.74879845,2667.6,2667.2,3.241723]
[1748542260570,7.89779845,2667.6,2667.2,3.241723]
[1748542260779,7.89584223,2667.5,2667.1,10.0]
[1748542260994,4.147,2667.5,2667.2,10.0]
[1748542261196,3.74898806,2667.4,2666.9,4.94071045]
[1748542261381,3.74902255,2667.4,2666.9,2.74962232]
[1748542261586,3.74930273,2667.2,2666.8,3.00826]
[1748542261826,3.74923323,2667.3,2666.9,10.0]
[1748542261976,4.143,2667.2,2666.7,23.44827503]
[1748542262173,6.45761663,2667.8,2666.9,3.74959604]
[1748542262174,3.74873421,2667.6,2666.9,3.74959604]
[1748542262518,3.74873421,2667.6,2666.7,15.399956]
[1748542262519,5.3793,2667.6,2666.7,15.399956]
[1748542262674,4.68059428,2668.1,2667.6,1.2579]
[1748542262869,9.0512,2669.7,2667.6,1.2579]
[1748542262870,0.35789239,2669.6,2668.0,55.61767352]
[1748542263074,0.35789239,2669.6,2668.9,1.87255784]
[1748542263283,0.59623286,2669.2,2668.9,1.87255784]
[1748542263722,0.59623286,2669.2,2669.1,26.47398224]
[1748542263874,3.74567398,2669.8,2669.3,20.478]
[1748542264096,3.74596197,2669.6,2669.0,10.79275]
[1748542264321,1.2603,2670.1,2669.1,25.215214]
[1748542264525,1.2603,2670.1,2669.4,11.60654]
[1748542264672,7.95639294,2670.0,2669.6,40.171593]
[1748542264879,4.211,2670.0,2669.6,28.149493]
[1748542265094,7.95633306,2670.0,2669.6,28.149493]
[1748542265427,7.95533306,2670.0,2669.6,28.149493]
[1748542265574,3.74533306,2670.0,2669.5,28.703693]
[1748542265774,2.48160173,2670.2,2669.7,15.61819639]
[1748542265979,6.22673466,2670.2,2669.7,11.86872683]
[1748542266312,3.74531164,2670.1,2669.7,1.86872683]
[1748542266515,3.74531164,2670.1,2669.7,11.86872683]
[1748542266688,6.22667643,2670.2,2669.7,15.61442583]
[1748542266689,2.48160173,2670.2,2669.7,15.61442583]
[1748542266886,2.48160173,2670.2,2669.7,1.86872683]
[1748542266887,3.74541561,2670.0,2669.7,1.86872683]
[1748542267212,3.74520785,2670.1,2669.6,1.86872683]
[1748542267514,2.48160173,2670.2,2669.7,13.74568933]
[1748542267515,6.68660173,2670.2,2669.7,13.74568933]
[1748542267738,6.68660173,2670.2,2669.8,32.06994087]
[1748542267877,2.48160173,2670.2,2669.8,3.74552087]
[1748542268077,2.48160173,2670.2,2669.8,13.74555781]
[1748542268278,2.48160173,2670.2,2669.9,10.0]
[1748542268518,2.48160173,2670.2,2669.8,39.143075]
[1748542268731,2.48160173,2670.2,2669.8,3.74558781]
[1748542268889,6.68160173,2670.2,2669.9,3.74542126]
[1748542269098,6.68160173,2670.2,2669.9,26.266325]
[1748542269633,2.48160173,2670.2,2669.9,22.381982]
[1748542269831,2.48160173,2670.2,2670.0,3.74522679]
[1748542269987,2.48160173,2670.2,2670.1,22.351693]
[1748542270194,2.48160173,2670.2,2670.1,27.95706371]
[1748542270834,2.48160173,2670.2,2670.1,19.42835263]
[1748542271129,2.48160173,2670.2,2670.1,18.83566]
[1748542271304,2.48160173,2670.2,2670.1,22.58083808]
[1748542272139,2.48160173,2670.2,2670.1,18.83566]
[1748542272293,2.48160173,2670.2,2670.1,14.457606]
[1748542272698,2.48160173,2670.2,2670.1,10.101925]
[1748542273011,2.7297619,2670.2,2669.8,11.1632]
[1748542273335,2.48160173,2670.2,2670.0,24.95220165]
[1748542273493,2.48160173,2670.2,2670.0,3.3378]
[1748542273693,2.48160173,2670.2,2669.9,13.70895]
[1748542273925,2.48160173,2670.2,2670.0,13.687492]
[1748542274492,2.48160173,2670.2,2669.9,11.17969]
[1748542274698,2.48160173,2670.2,2669.9,10.707467]
[1748542275093,3.74518727,2670.1,2669.7,1.2591]
[1748542275337,3.74526777,2670.1,2669.7,22.479127]
[1748542275546,3.74526777,2670.1,2669.7,12.479127]
[1748542276115,2.48160173,2670.2,2669.7,12.479127]
[1748542276116,2.48160173,2670.2,2669.8,15.050408]
[1748542276651,6.22670333,2670.2,2669.8,10.0]
[1748542276952,3.74526293,2670.1,2669.8,9.398]
[1748542277151,3.74526293,2670.1,2669.7,10.548577]
[1748542277525,2.48160173,2670.2,2669.7,10.548577]
[1748542277848,2.48160173,2670.2,2669.6,1.86872683]
[1748542277849,7.91619273,2670.1,2669.6,3.7458762]
[1748542278046,3.74531944,2670.0,2669.6,21.866249]
[1748542278269,3.74531944,2670.0,2669.6,11.866249]
[1748542278417,3.74531944,2670.0,2669.4,4.96548141]
[1748542278617,3.74547482,2669.9,2669.4,0.31272293]
[1748542278818,4.171,2670.1,2669.5,10.376646]
[1748542279013,3.74552225,2669.9,2669.5,10.576646]
[1748542279262,3.74552225,2669.9,2669.6,0.3126995]
[1748542279415,1.1753,2669.9,2669.6,0.3126995]
[1748542279611,3.74567618,2669.8,2669.6,0.3126995]
[1748542279814,3.74573922,2669.7,2669.6,0.3126995]
[1748542280056,3.7456665,2669.8,2669.6,0.3126995]
[1748542280255,4.165,2669.8,2669.6,0.3126995]
[1748542280468,7.91066509,2669.8,2669.6,0.3126995]
[1748542280830,3.74573922,2669.7,2669.6,0.3126995]
[1748542281130,5.57890445,2669.7,2669.6,0.3126995]
[1748542281344,1.28316523,2669.7,2669.6,0.3126995]
[1748542281665,3.74573922,2669.7,2669.6,0.3126995]
[1748542283327,3.74573922,2669.7,2669.1,28.279231]
[1748542283533,3.74573922,2669.7,2669.1,18.279231]
[1748542284049,0.55,2669.7,2669.1,10.66412]
[1748542284232,3.74636441,2669.3,2669.0,1.86872683]
[1748542284568,3.74623188,2669.4,2669.0,1.86872683]
[1748542284738,3.74623188,2669.4,2668.6,1.86872683]
[1748542284739,0.78972319,2669.4,2668.6,1.86872683]
[1748542284928,7.89708513,2669.5,2668.9,29.16570254]
[1748542285258,7.89708513,2669.5,2669.1,10.0]
[1748542285460,7.89708513,2669.5,2669.0,4.960992]
[1748542285461,3.74616564,2669.4,2669.0,14.589992]
[1748542285765,1.2585,2669.4,2668.7,0.31280496]
[1748542285965,3.74656607,2669.2,2668.8,3.749801]
[1748542286125,3.74630052,2669.3,2668.8,10.0]
[1748542286126,3.74660415,2669.1,2668.8,10.0]
[1748542286650,3.74634391,2669.3,2668.7,0.31280496]
[1748542286651,3.74649879,2669.2,2668.7,0.31280496]
[1748542286855,3.74636374,2669.3,2668.8,7.016041]
[1748542287159,3.74636374,2669.3,2668.9,10.0]
[1748542287327,3.74636374,2669.3,2668.8,12.90044]
[1748542287528,3.74636374,2669.3,2668.9,10.0]
[1748542287840,3.74636374,2669.3,2668.8,14.836747]
[1748542288236,3.74641031,2669.3,2668.7,11.21744]
[1748542288480,4.74090989,2669.3,2668.9,10.0]
[1748542288763,4.74090989,2669.3,2668.8,12.329041]
[1748542288922,4.74090989,2669.3,2668.9,10.0]
[1748542289122,4.74090989,2669.3,2668.8,25.443341]
[1748542289436,4.74090989,2669.3,2668.7,8.095341]
[1748542289763,9.13972295,2669.4,2668.9,3.74682812]
[1748542289924,9.13972295,2669.4,2669.0,10.272261]
[1748542290261,3.74635968,2669.3,2669.0,10.052261]
[1748542290424,3.74630052,2669.3,2668.8,2.311772]
[1748542290622,3.74630052,2669.3,2668.9,10.0]
[1748542290827,3.74630052,2669.3,2669.0,10.0]
[1748542291029,3.74646641,2669.2,2668.8,10.0]
[1748542291225,9.13972466,2669.4,2668.9,19.94250527]
[1748542291425,3.74605713,2669.5,2669.0,3.74664067]
[1748542291426,3.74609244,2669.5,2669.0,3.74664067]
[1748542291656,4.129,2669.4,2669.0,3.74664067]
[1748542291843,7.87516182,2669.4,2669.0,10.0]
[1748542292454,1.178,2669.9,2669.2,1.2585]
[1748542292745,5.304,2669.9,2669.2,1.2585]
[1748542292972,0.35757233,2670.6,2669.5,1.87007901]
[1748542292973,0.35759094,2670.6,2669.5,1.87007901]
[1748542293147,3.74455277,2670.6,2670.1,1.2585]
[1748542293350,3.74456973,2670.6,2670.1,1.2585]
[1748542293553,0.37445697,2670.6,2670.1,1.2585]
[1748542293773,0.37445697,2670.6,2670.2,10.0]
[1748542294073,4.11905666,2670.6,2670.2,10.0]
[1748542294237,4.11898587,2670.6,2669.9,10.0]
[1748542294440,3.74474334,2670.5,2670.0,20.8527]
[1748542294755,8.67509829,2670.5,2669.9,11.078381]
[1748542295067,8.67503821,2670.5,2669.9,14.82355915]
[1748542295271,8.67503821,2670.5,2670.0,10.618688]
[1748542295475,8.67503821,2670.5,2670.1,10.374088]
[1748542295683,1.1823,2670.4,2669.8,1.2585]
[1748542295880,1.1823,2670.4,2669.6,3.764704]
[1748542295881,0.61126549,2670.3,2669.6,3.764704]
[1748542296189,7.88504005,2670.2,2669.8,10.0]
[1748542296479,7.88504005,2670.2,2669.7,3.74570037]
[1748542296769,0.61126549,2670.3,2669.7,10.0]
[1748542296969,7.88210437,2670.2,2669.8,20.5866]
[1748542297174,4.137,2670.2,2669.9,29.0954303]
[1748542297346,1.1823,2670.4,2670.0,10.8947]
[1748542297671,4.134,2670.3,2670.0,10.8947]
[1748542297872,3.74490673,2670.3,2670.0,10.3681]
[1748542298071,4.92717455,2670.4,2669.9,15.938185]
[1748542298272,4.133,2670.3,2670.0,28.211543]
[1748542298436,1.1823,2670.4,2669.9,19.824787]
[1748542298644,4.132,2670.4,2670.0,19.17033037]
[1748542298976,4.132,2670.4,2670.1,15.427526]
[1748542299269,7.87677308,2670.4,2669.9,3.74539169]
[1748542299571,4.129,2670.4,2670.1,10.0]
[1748542299745,4.129,2670.4,2670.0,3.74531596]
[1748542300073,3.74498359,2670.3,2669.9,10.0187]
[1748542300272,4.5321981,2670.4,2669.9,3.74545207]
[1748542300572,8.65818456,2670.4,2669.9,26.17386539]
[1748542300738,8.65818456,2670.4,2670.0,10.0]
[1748542301172,4.123,2670.3,2670.0,10.0]
[1748542301560,7.8679294,2670.3,2669.8,13.74554333]
[1748542301878,0.78736923,2670.4,2669.8,34.309228]
[1748542302073,4.122,2670.3,2670.0,10.0]
[1748542302247,1.2417,2670.2,2669.6,12.984392]
[1748542302447,3.7455334,2669.9,2669.6,10.0]
[1748542302769,3.7455334,2669.9,2669.5,1.2585]
[1748542302974,7.86539044,2670.0,2669.5,5.00451758]
[1748542303171,3.74549353,2669.9,2669.5,1.2585]
[1748542303375,3.74549353,2669.9,2669.0,7.86671224]
[1748542303376,3.74587953,2669.6,2669.2,1.2124]
[1748542303669,1.1610715,2669.9,2669.4,10.0]
[1748542303670,7.86477412,2669.7,2669.4,10.0]
[1748542303871,3.74593648,2669.6,2669.2,10.0]
[1748542304072,3.74593648,2669.6,2669.3,0.31273465]
[1748542304974,4.119,2669.7,2669.3,0.31273465]
[1748542304975,7.86482599,2669.7,2669.3,0.31273465]
[1748542305273,4.119,2669.7,2669.3,0.31273465]
[1748542305475,7.86482822,2669.7,2669.3,0.31273465]
[1748542306173,4.119,2669.7,2669.3,4.05903143]
[1748542306374,4.111,2669.6,2669.4,13.74612516]
[1748542306584,3.74537796,2670.0,2669.5,13.74594485]
[1748542306783,7.85547685,2669.9,2669.5,13.834084]
[1748542306937,4.61854225,2670.0,2669.6,1.87007901]
[1748542306938,0.87322219,2670.0,2669.6,1.87007901]
[1748542307142,1.2417,2670.2,2669.6,1.87007901]
[1748542307143,1.2417,2670.2,2669.8,18.09833714]
[1748542307338,1.2417,2670.2,2669.8,17.481458]
[1748542307574,1.2417,2670.2,2669.8,12.7557]
[1748542307575,4.98685372,2670.2,2669.8,12.7557]
[1748542307779,4.98685372,2670.2,2669.9,10.0]
[1748542307983,4.98685372,2670.2,2669.8,12.758182]
[1748542308151,4.98685372,2670.2,2669.8,12.698182]
[1748542308355,4.98685372,2670.2,2669.9,10.0]
[1748542308670,4.98685372,2670.2,2669.7,3.74567088]
[1748542308671,4.98685372,2670.2,2669.7,13.74567088]
[1748542309200,4.98685372,2670.2,2669.9,10.0]
[1748542309381,4.98685372,2670.2,2669.7,13.74566279]
[1748542309540,1.2417,2670.2,2669.7,13.74566279]
[1748542309866,1.2417,2670.2,2669.7,7.55885725]
[1748542310075,1.2417,2670.2,2669.8,3.74559324]
[1748542310254,4.102,2670.1,2669.8,3.74559324]
[1748542310455,4.102,2670.1,2669.8,10.0]
[1748542310786,4.102,2670.1,2669.7,13.7456715]
[1748542310947,4.102,2670.1,2669.8,10.0]
[1748542311343,4.102,2670.1,2669.8,3.7455906]
[1748542311546,7.84717821,2670.1,2669.6,10.0]
[1748542311747,3.74554571,2669.9,2669.6,10.0]
[1748542311976,3.74554571,2669.9,2669.3,4.671784]
[1748542311977,4.097,2669.8,2669.3,4.671784]
[1748542312183,4.097,2669.8,2669.5,12.790398]
[1748542312347,7.8426784,2669.8,2669.3,9.77586141]
[1748542312676,4.097,2669.8,2669.4,3.74615387]
[1748542312881,4.096,2669.7,2669.5,13.74599263]
[1748542313089,4.096,2669.7,2669.5,3.74599263]
[1748542313295,4.096,2669.7,2669.6,10.0]
[1748542313488,4.096,2669.7,2669.5,3.74599263]
[1748542314016,4.096,2669.7,2669.4,13.74610703]
[1748542314160,4.096,2669.7,2669.5,2.201242]
[1748542314365,4.096,2669.7,2669.4,25.638464]
[1748542314366,4.5056,2669.7,2669.4,25.638464]
[1748542314607,4.096,2669.7,2669.4,29.38461722]
[1748542314758,4.096,2669.7,2669.5,13.7459899]
[1748542314962,4.096,2669.7,2669.5,10.0]
[1748542315185,4.096,2669.7,2669.5,13.74601467]
[1748542315488,4.096,2669.7,2669.6,3.74587953]
[1748542315701,4.088,2669.7,2669.6,16.475657]
[1748542315996,4.088,2669.7,2669.4,13.74608052]
[1748542316203,4.088,2669.7,2669.4,10.0]
[1748542316492,4.088,2669.7,2669.4,13.74612605]
[1748542316658,4.088,2669.7,2669.5,3.74601245]
[1748542316861,4.088,2669.7,2669.4,13.74613173]
[1748542317158,4.088,2669.7,2669.5,9.514473]
[1748542317355,3.74547385,2669.9,2669.5,9.514473]
[1748542317594,4.083,2669.8,2669.6,6.079021]
[1748542317784,4.083,2669.8,2669.5,13.616755]
[1748542317981,4.083,2669.8,2669.4,3.74608421]
[1748542318168,7.82861676,2669.8,2669.4,23.332032]
[1748542318371,4.083,2669.8,2669.3,10.0]
[1748542318571,4.23814503,2669.7,2669.3,10.313107]
[1748542318771,7.82864183,2669.8,2669.4,10.0]
[1748542318977,7.82864183,2669.8,2669.5,5.792907]
[1748542319178,7.82864183,2669.8,2669.5,2.902798]
[1748542319894,7.82864183,2669.8,2669.0,3.74669794]
[1748542319895,3.74610794,2669.5,2669.0,3.74669794]
[1748542320210,4.95293066,2669.5,2669.1,10.0]
[1748542320362,4.077,2669.5,2669.2,10.0]
[1748542320563,4.077,2669.5,2669.0,2.152702]
[1748542320777,4.077,2669.5,2669.1,17.983198]
[1748542320987,4.077,2669.5,2669.2,13.005983]
[1748542321300,1.2674,2669.6,2669.3,3.74616891]
[1748542321501,4.073,2669.5,2669.4,2.09972]
[1748542321700,4.073,2669.5,2669.4,10.0]
[1748542321906,4.073,2669.5,2669.2,17.49404496]
[1748542322075,4.073,2669.5,2669.4,10.0]
[1748542322275,4.073,2669.5,2669.2,12.265755]
[1748542322478,4.073,2669.5,2669.3,10.0]
[1748542322978,4.98162933,2669.5,2669.0,10.0]
[1748542323177,4.98162933,2669.5,2669.1,10.0]
[1748542323388,4.98162933,2669.5,2668.9,5.61685037]
[1748542323389,4.98162933,2669.5,2668.9,3.74685936]
[1748542323597,4.073,2669.5,2668.9,1.87007901]
[1748542323778,4.073,2669.5,2669.1,3.74656723]
[1748542323964,4.073,2669.5,2669.0,3.74664566]
[1748542324168,4.066,2669.4,2669.1,13.74650752]
[1748542324403,4.066,2669.4,2669.2,3.74630118]
[1748542324613,1.2674,2669.6,2669.1,3.74650553]
[1748542324614,4.065,2669.5,2669.1,3.74650553]
[1748542324903,4.065,2669.5,2668.9,1.87007901]
[1748542324904,3.74623592,2669.4,2668.9,5.61687655]
[1748542325125,3.74623592,2669.4,2669.0,2.599132]
[1748542325271,3.74650573,2669.2,2668.8,10.0]
[1748542325470,3.74624633,2669.4,2668.7,12.098253]
[1748542325471,3.74637051,2669.3,2668.7,12.098253]
[1748542325805,3.74645651,2669.2,2668.9,10.0]
[1748542325968,3.74637682,2669.3,2668.8,3.74699208]
[1748542326407,3.74670244,2669.1,2668.6,11.2483]
[1748542326605,3.74670244,2669.1,2668.8,10.0]
[1748542326791,7.80651854,2669.2,2668.7,3.74712798]
[1748542326971,4.06,2669.2,2668.8,3.95389698]
[1748542327171,4.06,2669.2,2668.9,0.2069217]
[1748542327397,4.06,2669.2,2669.0,0.20691431]
[1748542327613,0.55,2669.9,2669.3,3.74623047]
[1748542327614,4.057,2669.8,2669.3,3.74623047]
[1748542327917,4.057,2669.8,2669.4,0.20679383]
[1748542327918,7.80268388,2669.8,2669.4,0.20679383]
[1748542328098,7.80268388,2669.8,2669.5,0.20679127]
[1748542328283,3.74573922,2669.7,2669.6,0.20678337]
[1748542328483,3.74573922,2669.7,2669.3,0.20680163]
[1748542328707,7.80260075,2669.8,2669.3,3.426908]
[1748542329013,4.057,2669.8,2669.4,0.20676669]
[1748542329186,4.057,2669.8,2669.5,0.20676998]
[1748542329384,4.057,2669.8,2669.1,3.7465171]
[1748542329385,4.057,2669.8,2669.6,0.20676615]
[1748542329599,3.74587264,2669.7,2669.2,3.74635377]
[1748542330096,3.74587264,2669.7,2669.2,10.0]
[1748542330304,3.74589756,2669.6,2669.3,0.20674074]
[1748542330500,5.01579554,2670.1,2668.9,3.74680407]
[1748542330501,4.053,2669.5,2669.4,0.2067343]
[1748542330702,3.74579433,2669.7,2669.4,0.20673092]
[1748542330893,4.05,2669.6,2669.5,0.20673092]
[1748542331213,7.79590834,2669.6,2669.3,10.20674597]
[1748542331378,7.79590834,2669.6,2669.4,0.20675735]
[1748542331577,7.79590834,2669.6,2669.5,0.20675735]
[1748542331812,7.79590834,2669.6,2669.1,3.74651713]
[1748542332114,4.048,2669.6,2669.2,14.409336]
[1748542332317,5.01584995,2670.1,2669.3,30.70680768]
[1748542332621,3.74548135,2669.9,2669.4,3.7460813]
[1748542332934,3.74547737,2669.9,2669.4,3.74609856]
[1748542333213,7.79136232,2670.0,2669.5,3.74600558]
[1748542333536,5.01582293,2670.1,2669.4,13.74614978]
[1748542333674,4.044,2670.0,2669.2,1.87007901]
[1748542333874,3.74580582,2669.7,2669.3,3.6407]
[1748542334077,3.74580582,2669.7,2669.4,10.0]
[1748542334299,3.74553735,2669.9,2669.4,3.74609435]
[1748542334518,7.78939905,2670.0,2669.5,3.74596008]
[1748542334824,9.06990546,2670.0,2669.4,3.74606037]
[1748542334977,1.28050641,2670.0,2669.4,3.74606037]
[1748542335180,4.04,2670.0,2669.6,3.74584767]
[1748542335824,4.04,2670.0,2669.6,25.60392]
[1748542335992,7.78533002,2670.0,2669.6,15.60392]
[1748542336187,7.78533002,2670.0,2669.6,13.5129]
[1748542336632,4.037,2670.0,2669.5,3.74596145]
[1748542336815,3.74566436,2669.8,2669.6,3.818755]
[1748542337123,3.74537791,2670.0,2669.4,3.74604586]
[1748542337333,1.2706,2670.1,2669.4,3.746029]